bitfinex/quotes_ETHUSD_20251119
["timestamp","ask_amount","ask_price","bid_price","bid_amount"]
[1763553501630,0.50805925,3089.5,3088.9,0.9729756]
[1763553502041,0.99045925,3089.5,3088.9,0.9729756]
[1763553503257,0.4824,3089.4,3088.9,0.9729756]
[1763553504058,0.4824,3089.4,3088.9,1.4588756]
[1763553504250,0.4816,3089.4,3088.9,1.4588756]
[1763553504562,0.4816,3089.4,3088.9,0.4859]
[1763553504865,0.4816,3089.4,3089.0,0.50805925]
[1763553505528,0.4816,3089.4,3089.0,0.99395925]
[1763553505732,0.4816,3089.4,3089.0,0.50805925]
[1763553505934,0.4816,3089.4,3088.8,0.5949]
[1763553506146,0.4816,3089.4,3088.9,0.50805925]
[1763553506546,0.4816,3089.4,3088.9,0.99395925]
[1763553506871,0.4816,3089.4,3088.9,0.4859]
[1763553507167,0.4816,3089.4,3089.0,0.50805925]
[1763553508364,0.2646,3089.1,3089.0,0.50805925]
[1763553508703,0.2646,3089.1,3088.6,0.50805925]
[1763553508842,0.4645,3089.0,3088.6,0.50805925]
[1763553509167,0.0187,3088.7,3088.6,0.50805925]
[1763553509338,0.50805925,3089.5,3088.6,0.50805925]
[1763553509542,0.97255925,3089.5,3088.7,5.11160933]
[1763553509869,0.97255925,3089.5,3088.8,0.61126686]
[1763553510052,0.4645,3089.4,3088.8,0.61126686]
[1763553510546,0.2821,3088.9,3088.8,0.61126686]
[1763553510746,0.24972707,3088.9,3088.6,0.50805925]
[1763553511438,0.71242707,3088.9,3088.6,0.50805925]
[1763553512870,0.24972707,3088.9,3088.6,0.50805925]
[1763553514065,0.24972707,3088.9,3088.6,0.99395925]
[1763553514264,0.002,3089.6,3088.8,0.493]
[1763553514465,0.4645,3089.4,3088.8,0.493]
[1763553516172,0.4645,3089.4,3088.8,0.67910855]
[1763553516556,0.4645,3089.4,3088.9,0.4645]
[1763553516974,0.4645,3089.4,3088.9,0.9504]
[1763553517280,0.4665,3089.6,3088.9,0.9504]
[1763553517577,0.4665,3089.6,3088.9,0.77093]
[1763553518741,0.4665,3089.6,3088.9,0.4859]
[1763553518947,0.4665,3089.6,3089.0,0.88218555]
[1763553527094,0.4665,3089.6,3089.0,0.91455848]
[1763553527271,0.4665,3089.6,3089.0,1.40565848]
[1763553527457,0.4665,3089.6,3089.0,0.4911]
[1763553527661,0.4665,3089.6,3089.1,0.4665]
[1763553527861,0.4665,3089.6,3089.1,0.49887188]
[1763553528095,0.4665,3089.6,3089.1,0.9576]
[1763553528289,0.4665,3089.6,3089.1,0.4911]
[1763553528490,0.4665,3089.6,3089.2,0.4665]
[1763553529201,0.4657,3089.6,3089.2,0.4665]
[1763553529905,0.4776,3089.6,3089.2,0.4665]
[1763553531211,0.0012,3089.6,3089.5,1.38259264]
[1763553531499,0.0012,3089.6,3089.5,1.69309888]
[1763553531687,0.0012,3089.6,3089.5,2.18419888]
[1763553531890,0.0012,3089.6,3089.5,2.31390035]
[1763553532276,0.0012,3089.6,3089.5,2.63860035]
[1763553532484,0.0012,3089.6,3089.5,2.52960035]
[1763553532770,0.0012,3089.6,3089.5,2.63860035]
[1763553541105,0.0012,3089.6,3089.5,2.67096804]
[1763553541618,0.0012,3089.6,3089.5,2.63860035]
[1763553542501,0.98628067,3090.0,3089.6,1.05248364]
[1763553542683,0.50988067,3090.0,3089.7,0.3691084]
[1763553542881,0.4764,3089.9,3089.6,0.254491]
[1763553543072,0.4764,3089.9,3089.8,0.50988067]
[1763553543414,0.1593,3089.9,3089.6,0.145491]
[1763553543710,0.4873,3089.7,3089.6,0.65537167]
[1763553544071,0.7365,3089.7,3089.6,0.65537167]
[1763553544271,0.4873,3089.7,3089.6,0.65537167]
[1763553544468,0.7365,3089.7,3089.6,0.65537167]
[1763553549094,0.7385,3089.7,3089.6,0.65537167]
[1763553551281,0.7385,3089.7,3089.6,0.145491]
[1763553552808,0.7385,3089.7,3089.1,0.001]
[1763553553135,0.0025,3089.2,3089.1,0.146491]
[1763553553281,0.0025,3089.2,3089.1,0.001]
[1763553553486,0.4704,3089.2,3089.1,0.001]
[1763553554190,0.4696,3089.2,3089.1,0.001]
[1763553555431,0.0017,3089.2,3089.1,0.001]
[1763553555619,0.002,3089.7,3089.1,0.001]
[1763553555620,0.4679,3089.6,3089.1,0.001]
[1763553555808,0.50801282,3089.2,3089.1,0.4645]
[1763553556805,0.77491282,3089.2,3089.1,0.001]
[1763553557419,0.50801282,3089.2,3089.1,0.4645]
[1763553557718,0.50801282,3089.2,3089.1,0.001]
[1763553558018,0.77491282,3089.2,3089.1,0.001]
[1763553559226,0.50801282,3089.2,3089.1,0.001]
[1763553559414,0.50801282,3089.2,3089.1,0.4645]
[1763553560613,0.77491282,3089.2,3089.1,0.001]
[1763553565929,0.2669,3089.2,3089.1,0.001]
[1763553567496,0.23454802,3089.2,3089.1,0.001]
[1763553568035,0.23454802,3089.2,3089.1,0.4645]
[1763553568201,0.23654802,3089.2,3089.1,0.4645]
[1763553570442,0.70004802,3089.2,3089.1,0.4645]
[1763553570797,0.23654802,3089.2,3089.1,0.4645]
[1763553571935,0.70004802,3089.2,3089.1,0.4645]
[1763553572826,0.23654802,3089.2,3089.1,0.4645]
[1763553573136,0.70004802,3089.2,3089.1,0.001]
[1763553575135,5.32264753,3089.2,3089.1,0.001]
[1763553575337,5.85491228,3089.2,3089.1,0.001]
[1763553576038,0.76881277,3089.2,3089.1,0.001]
[1763553576239,0.4892,3089.2,3089.1,0.001]
[1763553576415,0.6729,3089.2,3089.1,0.001]
[1763553577214,0.56859396,3089.2,3089.1,0.001]
[1763553579010,0.56779396,3089.2,3089.1,0.001]
[1763553579415,1.07582191,3089.2,3089.1,0.001]
[1763553579609,0.56779396,3089.2,3089.1,0.001]
[1763553582419,1.07582587,3089.2,3089.1,0.001]
[1763553584651,0.50803191,3089.2,3089.1,0.4634]
[1763553584951,0.50803191,3089.2,3089.1,0.001]
[1763553585347,0.52433191,3089.2,3089.1,0.001]
[1763553585517,0.97003191,3089.2,3089.1,0.001]
[1763553586451,0.52433191,3089.2,3089.1,0.001]
[1763553586656,0.97003191,3089.2,3089.1,0.001]
[1763553587157,0.52433191,3089.2,3089.1,0.001]
[1763553587449,0.97203191,3089.2,3089.1,0.001]
[1763553590958,0.52633191,3089.2,3089.1,0.001]
[1763553591528,0.97203191,3089.2,3089.1,0.001]
[1763553592333,0.52633191,3089.2,3089.1,0.001]
[1763553592669,0.97203191,3089.2,3089.1,0.001]
[1763553593028,0.464,3089.2,3089.1,0.001]
[1763553596240,1.40967114,3089.2,3089.1,0.001]
[1763553596439,1.70994571,3089.2,3089.1,0.001]
[1763553596677,1.9560671,3089.2,3089.1,0.001]
[1763553596831,2.4017671,3089.2,3089.1,0.001]
[1763553597362,1.70994571,3089.2,3089.1,0.001]
[1763553597872,1.67843852,3089.2,3089.1,0.001]
[1763553598758,1.67839128,3089.2,3089.1,0.001]
[1763553599772,0.82718728,3089.2,3089.1,0.001]
[1763553599947,0.0183,3089.2,3089.1,0.001]
[1763553600267,0.90052733,3089.2,3089.1,0.001]
[1763553601484,0.45342733,3089.2,3089.1,0.001]
[1763553601683,0.002,3089.2,3089.1,0.6525]
[1763553601980,0.002,3089.2,3089.1,0.9316]
[1763553602147,0.002,3089.2,3089.1,0.4634]
[1763553603056,0.002,3089.2,3089.1,0.001]
[1763553603057,1.005804,3089.2,3089.1,0.001]
[1763553603250,2.59571014,3089.2,3089.1,0.001]
[1763553604086,2.59491014,3089.2,3089.1,0.001]
[1763553604587,2.56340295,3089.2,3089.1,0.001]
[1763553604958,2.59491014,3089.2,3089.1,0.001]
[1763553605650,2.56340295,3089.2,3089.1,0.001]
[1763553606086,2.59491014,3089.2,3089.1,0.001]
[1763553608362,2.56340295,3089.2,3089.1,0.001]
[1763553609804,3.50190278,3089.2,3089.1,0.001]
[1763553611318,4.36875828,3089.2,3089.1,0.001]
[1763553611515,3.50190278,3089.2,3089.1,0.001]
[1763553612584,0.0045,3088.5,3087.6,0.1925]
[1763553612908,0.405504,3088.3,3087.6,0.1925]
[1763553613517,4.62259951,3088.1,3087.3,0.1865]
[1763553614071,0.405504,3088.4,3088.0,0.4542]
[1763553614268,0.405504,3088.3,3088.0,0.4542]
[1763553614707,0.405504,3088.3,3088.0,0.9236]
[1763553615001,0.405504,3088.3,3088.0,0.4542]
[1763553615204,0.90831435,3088.3,3088.0,0.4542]
[1763553615705,1.31249664,3088.8,3088.2,0.4542]
[1763553615905,0.29963302,3088.7,3088.3,0.4542]
[1763553616102,0.405504,3088.5,3088.3,0.4542]
[1763553616681,0.90699264,3089.0,3088.4,0.4542]
[1763553616897,0.69040347,3089.1,3088.3,0.4694]
[1763553617202,0.0012,3089.2,3088.3,0.4694]
[1763553617705,0.406704,3089.2,3088.3,0.4694]
[1763553618069,0.0012,3089.2,3088.3,0.4694]
[1763553618273,0.0012,3089.2,3089.1,0.4542]
[1763553618783,0.2449,3089.2,3088.8,0.4694]
[1763553619301,0.405504,3089.1,3088.7,0.4694]
[1763553619874,0.91359886,3089.1,3088.7,0.4694]
[1763553620123,0.405504,3089.1,3088.7,0.4694]
[1763553621401,0.37313107,3089.1,3088.7,0.4694]
[1763553623015,0.88122516,3089.1,3088.7,0.4694]
[1763553623818,0.88122516,3089.1,3089.0,0.4542]
[1763553624025,0.50809409,3089.1,3089.0,0.4542]
[1763553624504,0.50809409,3089.1,3089.0,0.9255]
[1763553624908,0.50809409,3089.1,3089.0,1.43359409]
[1763553625621,0.0012,3089.2,3089.0,1.43359409]
[1763553625809,0.0012,3089.2,3089.1,0.9639]
[1763553626502,0.0012,3089.2,3089.1,1.371404]
[1763553629022,0.0004,3089.2,3089.1,1.371404]
[1763553630901,0.0004,3089.2,3089.1,2.87779699]
[1763553632903,0.0004,3089.2,3089.1,1.97080435]
[1763553633105,0.0004,3089.2,3089.1,1.371404]
[1763553634932,0.0004,3089.2,3089.1,0.407504]
[1763553635155,0.0004,3089.2,3089.1,0.900104]
[1763553635709,0.0004,3089.2,3089.1,1.371404]
[1763553637027,0.0004,3089.2,3089.1,5.231404]
[1763553637336,0.0004,3089.2,3089.1,7.22478537]
[1763553642832,0.0004,3089.2,3089.1,10.64278537]
[1763553643039,0.0004,3089.2,3089.1,7.22478537]
[1763553645621,0.0004,3089.2,3089.1,11.19217819]
[1763553645835,0.002,3089.6,3089.4,1.23169264]
[1763553646031,0.002,3089.6,3089.5,1.20796833]
[1763553646236,0.002,3089.6,3089.5,1.67756833]
[1763553646777,0.002,3089.6,3089.5,1.8072492]
[1763553647274,0.002,3089.6,3089.5,1.6982492]
[1763553647466,0.002,3089.6,3089.5,1.8072492]
[1763553648274,0.002,3089.6,3089.5,1.6982492]
[1763553648675,0.002,3089.6,3089.5,1.05678087]
[1763553649171,0.4815,3090.1,3089.5,1.05678087]
[1763553649369,0.45934472,3090.1,3089.6,0.4575]
[1763553649879,0.45934472,3090.1,3089.7,0.45934472]
[1763553650577,0.1742,3089.8,3089.7,0.45934472]
[1763553650781,0.45934472,3090.1,3089.7,0.45934472]
[1763553651081,0.1742,3089.8,3089.7,0.45934472]
[1763553654178,0.1734,3089.8,3089.7,0.45934472]
[1763553655156,0.6099,3089.8,3089.7,0.45934472]
[1763553655545,0.1734,3089.8,3089.7,0.45934472]
[1763553656567,0.4365,3090.0,3089.7,0.45934472]
[1763553656783,0.4817,3090.2,3089.7,0.91684472]
[1763553657282,0.4817,3090.2,3089.7,0.4575]
[1763553657489,0.4817,3090.2,3089.8,0.4817]
[1763553658349,0.002,3090.1,3089.8,0.4817]
[1763553659585,0.50988739,3090.1,3089.8,0.4817]
[1763553659885,0.4837,3090.1,3089.8,0.4817]
[1763553660787,0.151,3089.9,3089.8,0.4817]
[1763553662798,0.151,3089.9,3089.6,0.001]
[1763553662799,0.405504,3089.8,3089.6,0.001]
[1763553662991,0.68143218,3089.7,3089.6,0.001]
[1763553663163,0.405504,3089.6,3089.3,0.001]
[1763553663488,0.556204,3089.4,3089.3,0.001]
[1763553663651,0.85590826,3089.4,3089.3,0.001]
[1763553663983,1.33760826,3089.4,3089.3,0.001]
[1763553664151,1.037904,3089.4,3089.3,0.001]
[1763553664562,0.6324,3089.4,3089.3,0.001]
[1763553665088,0.1507,3089.4,3089.3,0.001]
[1763553665392,0.6324,3089.4,3089.3,0.001]
[1763553667555,0.486937,3089.4,3089.3,0.001]
[1763553669902,0.005237,3089.4,3089.3,0.001]
[1763553670263,0.468737,3089.4,3089.3,0.001]
[1763553671109,0.005237,3089.4,3089.3,0.001]
[1763553671402,0.468737,3089.4,3089.3,0.001]
[1763553672920,0.97675169,3089.4,3089.3,0.001]
[1763553673414,0.468737,3089.4,3089.3,0.001]
[1763553675692,0.470737,3089.4,3089.3,0.001]
[1763553676092,0.97879702,3089.4,3089.3,0.001]
[1763553676319,1.38430102,3089.4,3089.3,0.001]
[1763553676501,0.405504,3089.3,3089.0,0.001]
[1763553676701,0.536704,3089.1,3089.0,0.001]
[1763553677100,0.858104,3089.1,3089.0,0.001]
[1763553677313,0.858104,3089.1,3088.7,0.001]
[1763553677520,0.858104,3089.1,3088.4,0.001]
[1763553677521,0.0093,3088.7,3088.4,0.001]
[1763553677734,0.0045,3088.5,3088.4,0.001]
[1763553678088,0.862904,3088.5,3088.4,0.001]
[1763553678298,1.33154783,3088.5,3088.4,0.001]
[1763553678510,1.16183242,3088.5,3088.4,0.001]
[1763553678833,1.16103242,3088.5,3088.4,0.001]
[1763553679206,0.862104,3088.5,3088.4,0.001]
[1763553683292,1.16036849,3088.5,3088.4,0.001]
[1763553683929,1.36137976,3088.5,3088.4,0.001]
[1763553684136,1.36137976,3088.5,3086.8,0.0917]
[1763553684137,0.405504,3088.4,3086.8,0.0917]
[1763553684338,1.19187568,3088.4,3086.8,0.0917]
[1763553684523,1.19187568,3088.4,3086.8,0.574]
[1763553685039,1.19187568,3088.4,3086.8,0.0917]
[1763553685205,1.19187568,3088.4,3086.9,0.4823]
[1763553685703,1.16036849,3088.4,3087.1,0.4823]
[1763553686300,1.66867744,3088.4,3087.1,0.4823]
[1763553686658,1.83278808,3088.4,3087.1,0.4823]
[1763553689325,1.53452359,3088.4,3087.1,0.4823]
[1763553689520,2.34067163,3088.4,3087.1,0.4823]
[1763553689725,3.93398967,3088.4,3087.1,0.4823]
[1763553689922,3.24766427,3088.4,3087.1,0.4823]
[1763553690151,3.24766427,3088.4,3086.8,0.0917]
[1763553690305,3.93394487,3088.4,3087.2,0.4823]
[1763553690515,2.19994068,3088.4,3087.8,0.4823]
[1763553690816,1.87190525,3088.4,3087.5,0.4823]
[1763553691150,2.57536897,3088.4,3086.8,0.0917]
[1763553691351,3.29358682,3088.4,3087.0,0.4823]
[1763553691556,2.78527421,3088.4,3087.1,0.4823]
[1763553691759,3.11203163,3088.4,3087.1,0.4823]
[1763553692441,3.11203163,3088.4,3087.2,0.4823]
[1763553692639,3.08052444,3088.4,3087.4,0.4823]
[1763553693142,3.08052444,3088.4,3087.1,0.4823]
[1763553693960,1.53620978,3088.4,3087.9,0.001]
[1763553694165,1.20945236,3088.4,3087.9,0.001]
[1763553694316,0.4843,3088.5,3088.3,0.9759]
[1763553694317,0.002,3088.5,3088.3,0.9759]
[1763553694510,0.002,3088.5,3088.4,0.4926]
[1763553694841,0.51015879,3088.5,3088.4,0.9749]
[1763553695643,0.51015879,3088.5,3088.4,0.4926]
[1763553695834,0.51015879,3088.5,3088.4,0.9749]
[1763553704059,0.50935879,3088.5,3088.4,0.9749]
[1763553704668,0.50935879,3088.5,3088.4,1.16318926]
[1763553704829,0.0012,3088.5,3088.4,1.16318926]
[1763553705838,0.002,3088.9,3088.4,1.16318926]
[1763553706024,0.002,3088.9,3088.8,0.4587]
[1763553706553,0.002,3088.9,3088.8,0.9419]
[1763553715183,0.002,3088.9,3088.8,1.49827132]
[1763553718202,0.002,3088.9,3088.4,0.18928926]
[1763553718203,0.1897,3088.9,3088.4,0.18928926]
[1763553718492,0.6311,3088.9,3088.4,0.001]
[1763553718787,0.1852,3088.9,3088.4,0.001]
[1763553719184,0.1852,3088.9,3088.5,0.4832]
[1763553719614,0.002,3088.9,3088.5,0.4832]
[1763553721475,0.002,3088.9,3088.4,0.001]
[1763553721693,0.4577,3088.9,3088.4,0.001]
[1763553722014,0.002,3088.9,3088.8,0.4587]
[1763553722221,0.002,3088.9,3088.8,0.9419]
[1763553723015,0.002,3088.9,3088.8,1.49827132]
[1763553725201,0.002,3088.9,3088.8,0.9419]
[1763553727704,0.002,3088.9,3088.8,4.8019]
[1763553728891,0.0012,3088.9,3088.8,4.8019]
[1763553733331,0.0012,3088.9,3088.8,5.74126767]
[1763553734200,0.0012,3088.9,3088.8,5.70889264]
[1763553734589,0.0012,3088.9,3088.8,6.94572544]
[1763553735541,0.0012,3088.9,3088.8,3.49122944]
[1763553735991,0.0012,3088.9,3088.8,3.81592944]
[1763553736509,0.0012,3088.9,3088.8,3.41042544]
[1763553736722,0.0012,3088.9,3088.8,3.08572544]
[1763553736945,0.0012,3088.9,3088.8,1.84889264]
[1763553737313,0.0774,3088.9,3088.5,0.4563]
[1763553737512,0.0774,3088.9,3088.5,0.001]
[1763553738044,0.0047,3088.6,3088.5,0.001]
[1763553738407,0.4777,3088.6,3088.5,0.001]
[1763553743441,0.0047,3088.6,3088.5,0.001]
[1763553744651,0.4635,3088.6,3088.5,0.001]
[1763553747058,0.0047,3088.6,3088.5,0.001]
[1763553747944,0.4635,3088.6,3088.5,0.001]
[1763553748964,0.97165783,3088.6,3088.5,0.001]
[1763553749743,0.51285783,3088.6,3088.5,0.001]
[1763553752930,0.97165783,3088.6,3088.5,0.001]
[1763553753715,0.97085783,3088.6,3088.5,0.001]
[1763553755517,0.50815783,3088.6,3088.5,0.001]
[1763553755729,0.50815783,3088.6,3088.5,0.4908]
[1763553756016,0.50815783,3088.6,3088.5,0.9512]
[1763553756194,0.0012,3088.9,3088.5,0.9512]
[1763553759732,0.0012,3088.9,3088.5,0.4908]
[1763553760030,0.0012,3088.9,3088.8,0.4786]
[1763553761709,0.6447,3088.9,3088.5,0.001]
[1763553761899,0.6447,3088.9,3088.5,0.4659]
[1763553761900,0.0012,3088.9,3088.5,0.4659]
[1763553762743,0.1807,3088.8,3088.5,0.001]
[1763553762957,0.068,3088.6,3088.5,0.001]
[1763553763117,0.1807,3088.8,3088.5,0.001]
[1763553763315,0.1807,3088.8,3088.5,0.4796]
[1763553764242,0.0012,3088.9,3088.5,0.4796]
[1763553764438,0.002,3088.6,3088.5,0.4796]
[1763553766007,0.002,3088.6,3088.5,0.001]
[1763553766208,0.002,3088.6,3088.5,0.4796]
[1763553766852,0.07,3088.6,3088.5,0.001]
[1763553767924,0.002,3088.6,3088.5,0.4796]
[1763553768748,0.002,3088.6,3088.5,0.9445]
[1763553772445,0.51008201,3088.6,3088.5,0.9445]
[1763553772648,0.51008201,3088.6,3088.5,1.42515]
[1763553773155,0.51008201,3088.6,3088.5,2.33214264]
[1763553774364,0.51008201,3088.6,3088.5,6.19214264]
[1763553775145,0.002,3088.6,3088.5,6.19214264]
[1763553775469,0.002,3088.6,3088.5,6.63002481]
[1763553775670,0.002,3088.6,3088.5,6.59764664]
[1763553775967,0.0012,3088.9,3088.5,6.59764664]
[1763553775968,0.0012,3088.9,3088.6,0.730204]
[1763553776127,0.0012,3088.9,3088.8,0.884104]
[1763553776575,0.0012,3088.9,3088.8,1.349004]
[1763553777437,0.0012,3088.9,3088.8,1.458004]
[1763553778764,0.0004,3088.9,3088.8,1.458004]
[1763553780572,0.0004,3088.9,3088.8,1.349004]
[1763553780766,0.0004,3088.9,3088.8,1.85153724]
[1763553781168,0.0004,3088.9,3088.8,5.71153724]
[1763553786772,0.0004,3088.9,3088.8,6.61852988]
[1763553787355,0.002,3089.0,3088.8,6.61852988]
[1763553787356,0.002,3089.0,3088.9,5.17209664]
[1763553787562,0.002,3089.0,3088.9,6.14797062]
[1763553787860,0.002,3089.0,3088.9,7.20791459]
[1763553788071,0.002,3089.0,3088.9,13.87793903]
[1763553788285,0.002,3089.0,3088.9,13.97793903]
[1763553788479,0.002,3089.0,3088.9,14.4321241]
[1763553789389,0.002,3089.0,3088.9,7.62972568]
[1763553789590,0.002,3089.0,3088.9,7.60904061]
[1763553791589,0.002,3089.0,3088.9,4.91954397]
[1763553791590,0.0894,3089.0,3088.9,4.91954397]
[1763553791887,0.0894,3089.0,3088.9,4.76659264]
[1763553795563,0.0894,3089.0,3088.5,3.8606]
[1763553795798,0.0046,3088.6,3088.5,0.001]
[1763553796284,0.4663,3088.6,3088.5,0.001]
[1763553797387,0.0046,3088.6,3088.5,0.001]
[1763553797801,0.4663,3088.6,3088.5,0.001]
[1763553798010,0.1807,3088.9,3088.5,0.001]
[1763553798213,0.4827,3088.6,3088.5,0.001]
[1763553799607,0.002,3088.9,3088.5,0.9657]
[1763553799824,0.4827,3088.6,3088.5,0.001]
[1763553800305,0.1827,3088.9,3088.5,0.001]
[1763553800548,0.0874,3088.6,3088.5,0.001]
[1763553800893,0.5454,3088.6,3088.5,0.001]
[1763553803789,0.5446,3088.6,3088.5,0.001]
[1763553805393,0.950104,3088.6,3088.5,0.001]
[1763553805597,0.405504,3088.3,3088.1,0.001]
[1763553805813,0.405504,3087.8,3085.9,0.1937]
[1763553805995,0.405504,3087.8,3085.5,0.16933076]
[1763553805996,0.0906,3086.1,3085.5,0.16933076]
[1763553806529,0.4548,3086.6,3085.5,0.64073076]
[1763553807291,0.4548,3086.6,3085.5,0.16933076]
[1763553808823,0.4548,3086.6,3085.5,0.64073076]
[1763553809928,0.4548,3086.6,3085.6,0.4714]
[1763553810226,0.1882,3087.9,3085.6,0.4714]
[1763553810429,0.4585,3086.9,3085.6,0.4714]
[1763553810624,0.864004,3087.8,3085.7,0.03240755]
[1763553810794,0.405504,3087.6,3085.8,0.4714]
[1763553811197,0.1882,3087.9,3085.9,0.03240545]
[1763553811198,0.4585,3087.5,3085.9,0.03240545]
[1763553811614,0.4585,3087.5,3086.0,0.4714]
[1763553812035,0.4585,3087.5,3086.1,0.1937]
[1763553812533,0.4585,3087.5,3086.1,0.22610335]
[1763553812745,0.4585,3087.5,3086.2,0.4714]
[1763553815808,0.1882,3087.9,3086.3,0.03240125]
[1763553816011,0.4585,3087.7,3086.4,0.4714]
[1763553817030,0.4585,3087.7,3086.5,0.03239915]
[1763553817243,0.4585,3087.7,3086.4,0.4714]
[1763553817558,0.4585,3087.7,3086.5,0.03239915]
[1763553817762,0.4585,3087.7,3086.6,0.489]
[1763553818064,0.1882,3087.9,3086.7,0.90699264]
[1763553818348,0.4962,3087.8,3086.8,0.52555926]
[1763553818550,0.4962,3087.8,3086.8,1.01455926]
[1763553819954,0.4962,3087.8,3086.8,0.52555926]
[1763553820105,0.4962,3087.8,3086.9,0.489]
[1763553820615,0.4962,3087.8,3086.8,0.52555926]
[1763553820616,0.03150719,3087.7,3086.8,0.52555926]
[1763553820819,0.4962,3087.6,3086.8,0.52555926]
[1763553822546,0.0533,3086.9,3086.7,0.90699264]
[1763553822845,0.0533,3086.8,3086.5,0.90699264]
[1763553823038,0.4962,3087.2,3086.5,0.90699264]
[1763553823627,0.1882,3087.9,3086.5,0.90699264]
[1763553823814,0.4962,3087.4,3086.5,5.25559264]
[1763553824026,0.4962,3087.4,3086.5,4.76659264]
[1763553825352,0.4962,3087.4,3086.6,0.5213981]
[1763553825541,0.4962,3087.4,3086.6,0.489]
[1763553825744,0.4962,3087.4,3086.5,5.2921519]
[1763553825940,0.4962,3087.4,3086.5,4.76659264]
[1763553827542,0.0533,3086.6,3086.5,4.76659264]
[1763553827852,0.0533,3086.6,3085.9,0.8135]
[1763553827853,0.0533,3086.6,3086.1,0.1849]
[1763553828053,0.0533,3086.6,3086.1,1.12735]
[1763553828261,0.0533,3086.6,3086.2,0.489]
[1763553828451,0.4917,3087.0,3086.2,0.489]
[1763553828644,0.4954,3087.1,3086.2,0.489]
[1763553828839,0.73643278,3087.7,3086.0,0.001]
[1763553829069,0.70492559,3087.7,3086.0,0.90799264]
[1763553829763,0.70492559,3087.7,3086.0,1.39699264]
[1763553830065,0.405504,3087.5,3086.0,1.9226519]
[1763553830272,0.70501268,3087.7,3086.1,0.6739]
[1763553830566,0.405504,3087.7,3086.1,0.70630335]
[1763553830776,0.4962,3087.6,3086.2,0.489]
[1763553830979,0.68530657,3087.6,3086.3,0.03240125]
[1763553831278,0.4962,3087.6,3086.2,0.489]
[1763553831449,0.4962,3087.5,3086.2,0.8135]
[1763553831849,0.4962,3087.5,3086.4,0.90699264]
[1763553832246,0.4962,3087.5,3086.5,0.489]
[1763553833767,0.79610822,3087.8,3086.6,0.90699264]
[1763553833967,0.03150719,3087.7,3086.7,0.52555926]
[1763553834280,0.4962,3087.7,3086.8,0.489]
[1763553834596,0.002,3087.8,3086.9,0.03239495]
[1763553834749,0.002,3087.8,3087.6,0.4929]
[1763553835582,0.002,3087.8,3087.7,0.4929]
[1763553835880,0.002,3087.8,3087.7,0.9819]
[1763553836949,0.002,3087.8,3087.7,0.4929]
[1763553837151,0.002,3087.8,3087.7,0.9819]
[1763553839678,0.002,3087.8,3087.7,0.4929]
[1763553841181,0.7344,3087.8,3087.1,0.1849]
[1763553841367,0.002,3087.8,3087.7,0.4929]
[1763553841978,0.002,3087.8,3087.2,0.489]
[1763553842183,0.002,3087.8,3087.7,0.4929]
[1763553843159,0.002,3087.8,3087.7,0.9819]
[1763553843358,0.002,3087.8,3087.7,5.74849264]
[1763553843559,0.002,3087.8,3087.7,6.3233419]
[1763553843760,0.002,3087.8,3087.7,2.8692459]
[1763553843991,0.002,3087.8,3087.7,2.29439664]
[1763553844299,0.002,3088.2,3087.8,1.36249664]
[1763553844470,0.002,3088.5,3087.8,1.36249664]
[1763553844471,0.002,3088.5,3088.4,0.405504]
[1763553844679,0.002,3088.5,3088.4,1.007404]
[1763553844852,0.002,3088.5,3088.4,1.496404]
[1763553845056,0.002,3088.5,3088.4,2.25618127]
[1763553845253,0.002,3088.5,3088.4,2.36518127]
[1763553845714,0.002,3088.9,3088.4,6.51009645]
[1763553845873,0.002,3088.9,3088.8,8.03977267]
[1763553846191,0.002,3088.9,3088.8,8.14877267]
[1763553846394,0.002,3088.9,3088.8,9.48509994]
[1763553846996,0.002,3088.9,3088.8,2.84521991]
[1763553847198,0.002,3088.9,3088.8,1.99789264]
[1763553848060,0.002,3088.9,3088.8,8.63777267]
[1763553848258,0.002,3089.3,3088.9,1.31249664]
[1763553848490,0.002,3089.3,3088.9,2.26439664]
[1763553848895,0.002,3089.3,3088.9,2.31439664]
[1763553849066,0.002,3089.4,3089.1,0.649]
[1763553849405,0.002,3090.3,3089.5,0.405504]
[1763553849591,0.002,3090.3,3089.5,5.00426634]
[1763553849894,0.002,3090.3,3089.5,5.50116634]
[1763553850096,0.002,3090.3,3089.5,2.26439664]
[1763553850395,0.002,3090.3,3089.5,3.44295786]
[1763553850897,0.002,3090.3,3089.5,3.55195786]
[1763553851900,0.50983354,3090.3,3089.5,3.44295786]
[1763553852093,0.50983354,3090.3,3089.5,3.14645386]
[1763553852292,0.50983354,3090.3,3089.5,1.96789264]
[1763553852494,0.002,3090.0,3089.5,1.96789264]
[1763553853108,0.002,3090.0,3089.5,2.37339664]
[1763553853817,0.0012,3089.6,3089.5,2.26439664]
[1763553853992,0.0012,3089.6,3089.5,1.76749664]
[1763553854319,0.0012,3089.6,3089.5,2.29676433]
[1763553854615,0.0012,3089.6,3089.5,6.39694076]
[1763553854817,0.0012,3089.6,3089.5,15.86808649]
[1763553855018,0.002,3090.0,3089.6,1.36249664]
[1763553855181,0.002,3090.0,3089.7,0.8928696]
[1763553855515,0.002,3090.0,3089.7,1.3897696]
[1763553855715,0.002,3090.0,3089.7,4.22521364]
[1763553856282,0.50983354,3090.3,3089.8,1.31249664]
[1763553856522,0.50983354,3090.3,3090.0,8.05187267]
[1763553856689,0.002,3090.7,3090.3,0.1]
[1763553856881,0.002,3090.7,3090.4,0.455]